fUSD/lending_fUSD_20260309
["ID","MTS","AMOUNT","RATE_DAILY","PERIOD"]
[408065358,1773099038866,-5187.4308296,0.00019563,2]
[408065359,1773099038875,-166.66,0.00019571,2]
[408065360,1773099038885,-1680.0,0.00019575,2]
[408065361,1773099038895,-201.50554968,0.00019586,2]
[408065362,1773099038905,-150.29651913,0.00019586,2]
[408065363,1773099038915,-150.0,0.00019586,2]
[408065364,1773099038926,-150.0,0.00019586,2]
[408065365,1773099038935,-1187.03659846,0.000196,2]
[408065366,1773099038949,-1271.65378089,0.000196,5]
[408065367,1773099038959,-5000.0,0.000196,2]
[408065368,1773099038969,-169.86092391,0.00019616,2]
[408065369,1773099038978,-166.11925207,0.00019616,2]
[408065370,1773099038992,-169.86092391,0.00019616,2]
[408065371,1773099039001,-500.0,0.00019652,2]
[408065372,1773099039010,-303.51329603,0.00019652,2]
[408065373,1773099039023,-500.0,0.00019652,2]
[408065374,1773099039032,-500.0,0.00019652,2]
[408065375,1773099039043,-500.0,0.00019652,2]
[408065376,1773099039053,-500.0,0.00019652,2]
[408065377,1773099039064,-500.0,0.00019652,2]
[408065378,1773099039075,-500.0,0.00019652,2]
[408065379,1773099039084,-500.0,0.00019652,2]
[408065380,1773099039094,-500.0,0.00019652,2]
[408065381,1773099039333,-500.0,0.00019652,2]
[408065382,1773099039343,-264.47276717,0.00019652,2]
[408065383,1773099039353,-4233.39320517,0.00019653,2]
[408065384,1773099039363,-400.0,0.00019653,2]
[408065385,1773099039373,-707.0,0.0001967,5]
[408065386,1773099039383,-2427.01,0.00019675,2]
[408065387,1773099039392,-250.0,0.00019684,2]
[408065388,1773099039402,-250.0,0.00019686,2]
[408065389,1773099039412,-200.0,0.00019686,2]
[408065390,1773099039421,-200.0,0.00019686,2]
[408065391,1773099039430,-160.0,0.00019686,2]
[408065392,1773099039440,-161.9823944,0.00019686,2]
[408065393,1773099039449,-1514.0,0.00019686,2]
[408065394,1773099039458,-500.0,0.00019686,2]
[408065395,1773099039467,-200.0,0.00019686,2]
[408065396,1773099039476,-427.65,0.0001971,2]
[408065397,1773099039485,-505.26,0.00019711,2]
[408065398,1773099039494,-500.0,0.00019722,2]
[408065399,1773099039504,-500.0,0.00019722,2]
[408065400,1773099039514,-150.0,0.00019722,2]
[408065401,1773099039522,-150.0,0.00019722,2]
[408065402,1773099039532,-200.0,0.00019722,2]
[408065403,1773099039542,-150.0,0.00019722,2]
[408065404,1773099039551,-150.0,0.00019722,2]
[408065405,1773099039560,-544.0,0.00019722,2]
[408065406,1773099039569,-250.0,0.00019722,2]
[408065407,1773099039578,-150.0,0.00019722,2]
[408065408,1773099039588,-500.0,0.00019722,2]
[408065409,1773099039597,-500.0,0.00019722,2]
[408065410,1773099039606,-150.0,0.00019722,2]
[408065411,1773099039615,-150.0,0.00019722,2]
[408065412,1773099039624,-500.0,0.00019722,2]
[408065413,1773099039633,-150.0,0.00019722,2]
[408065414,1773099039642,-500.0,0.00019722,2]
[408065415,1773099039651,-1000.0,0.00019726,2]
[408065416,1773099039660,-1000.0,0.00019731,2]
[408065417,1773099039669,-1000.0,0.00019756,2]
[408065418,1773099039679,-150.0,0.00019759,2]
[408065419,1773099039689,-2022.01,0.00019768,2]
[408065420,1773099039698,-172.87392778,0.00019772,2]
[408065421,1773099039708,-4233.39320517,0.00019776,2]
[408065422,1773099039717,-500.0,0.00019777,2]
[408065423,1773099039726,-500.0,0.00019777,2]
[408065424,1773099039735,-150.0,0.00019777,2]
[408065425,1773099039745,-150.0,0.00019777,2]
[408065426,1773099039754,-150.0,0.00019777,2]
[408065427,1773099039764,-544.0,0.00019777,2]
[408065428,1773099039773,-200.0,0.00019777,2]
[408065429,1773099039783,-500.0,0.00019777,2]
[408065430,1773099039792,-500.0,0.00019777,2]
[408065431,1773099039801,-500.0,0.00019777,2]
[408065432,1773099039811,-150.0,0.00019777,2]
[408065433,1773099039820,-150.0,0.00019777,2]
[408065434,1773099039829,-500.0,0.00019777,2]
[408065435,1773099039838,-1000.0,0.00019785,2]
[408065436,1773099039848,-150.0,0.00019785,2]
[408065437,1773099039857,-917.0,0.00019785,2]
[408065438,1773099039866,-602.87216165,0.00019791,2]
[408065439,1773099039877,-1000.0,0.00019796,2]
[408065440,1773099039887,-150.0,0.000198,14]
[408065441,1773099039897,-1917.81228,0.000198,2]
[408065442,1773099039906,-1917.81228,0.000198,2]
[408065443,1773099039916,-1917.81227,0.000198,2]
[408065444,1773099039925,-1917.81228,0.000198,2]
[408065445,1773099039935,-700.32301,0.000198,2]
[408065446,1773099039948,-700.32302,0.000198,2]
[408065447,1773099039957,-602.87216165,0.00019809,2]
[408065448,1773099039967,-150.0,0.0001981,2]
[408065449,1773099039976,-1000.0,0.00019811,2]
[408065450,1773099039987,-150.0,0.00019816,2]
[408065451,1773099039996,-315.0,0.00019818,2]
[408065452,1773099040006,-168.0,0.00019819,2]
[408065453,1773099040015,-315.0,0.00019822,2]
[408065454,1773099040025,-150.0,0.00019822,2]
[408065455,1773099040034,-1000.0,0.00019826,2]
[408065456,1773099040043,-602.87216165,0.00019827,2]
[408065457,1773099040052,-500.0,0.00019832,2]
[408065458,1773099040061,-500.0,0.00019832,2]
[408065459,1773099040070,-150.0,0.00019832,2]
[408065460,1773099040080,-150.0,0.00019832,2]
[408065461,1773099040090,-225.29398025,0.00019832,2]
[408065462,1773099040099,-544.0,0.00019832,2]
[408065463,1773099040109,-500.0,0.00019832,2]
[408065464,1773099040119,-500.0,0.00019832,2]
[408065465,1773099040128,-500.0,0.00019832,2]
[408065466,1773099040137,-150.0,0.00019832,2]
[408065467,1773099040146,-500.0,0.00019832,2]
[408065468,1773099040156,-602.87216165,0.00019846,2]
[408065469,1773099040165,-1000.0,0.00019856,2]
[408065470,1773099040174,-602.87216165,0.00019864,2]
[408065471,1773099040184,-14412.42239599,0.00019868,2]
[408065472,1773099040193,-591.0,0.0001987,2]
[408065473,1773099040202,-4934.87,0.0001987,2]
[408065474,1773099040211,-14412.42239591,0.00019872,2]
[408065475,1773099040221,-500.0,0.00019873,2]
[408065476,1773099040231,-14412.42239591,0.00019875,2]
[408065477,1773099040240,-14412.42239591,0.00019879,2]
[408065478,1773099040250,-602.87216165,0.00019882,2]
[408065479,1773099040259,-14412.42239591,0.00019882,2]
[408065480,1773099040268,-200.0,0.00019883,2]
[408065481,1773099040277,-14412.42239591,0.00019886,2]
[408065482,1773099040286,-500.0,0.00019886,2]
[408065483,1773099040295,-500.0,0.00019886,2]
[408065484,1773099040305,-500.0,0.00019886,2]
[408065485,1773099040314,-500.0,0.00019886,2]
[408065486,1773099040323,-150.0,0.00019886,2]
[408065487,1773099040332,-544.0,0.00019886,2]
[408065488,1773099040341,-500.0,0.00019886,2]
[408065489,1773099040350,-500.0,0.00019886,2]
[408065490,1773099040359,-150.0,0.00019886,2]
[408065491,1773099040368,-500.0,0.00019886,2]
[408065492,1773099040377,-500.0,0.00019886,2]
[408065493,1773099040387,-2339.382,0.00019887,2]
[408065494,1773099040395,-168.887,0.00019887,2]
[408065495,1773099040405,-14412.42239591,0.00019889,2]
[408065496,1773099040414,-1000.0,0.00019891,2]
[408065497,1773099040423,-14412.42239591,0.00019893,2]
[408065498,1773099040433,-151.0,0.00019893,2]
[408065499,1773099040443,-361.876305,0.00019894,2]
[408065500,1773099040453,-361.876305,0.00019894,2]
[408065501,1773099040463,-361.876305,0.00019894,2]
[408065502,1773099040473,-361.876305,0.00019894,2]
[408065503,1773099040483,-176.639564,0.00019894,2]
[408065504,1773099040493,-151.0,0.00019894,2]
[408065505,1773099040503,-151.0,0.00019894,2]
[408065506,1773099040512,-218.155065,0.00019894,2]
[408065507,1773099040522,-202.657997,0.00019894,2]
[408065508,1773099040532,-218.155065,0.00019894,2]
[408065509,1773099040543,-202.657997,0.00019894,2]
[408065511,1773099040552,-218.155065,0.00019894,2]
[408065512,1773099040561,-202.657997,0.00019894,2]
[408065513,1773099040570,-218.155065,0.00019894,2]
[408065514,1773099040580,-202.657997,0.00019894,2]
[408065515,1773099040589,-151.0,0.00019895,2]
[408065516,1773099040598,-151.0,0.00019895,2]
[408065517,1773099040607,-151.0,0.00019895,2]
[408065518,1773099040616,-151.0,0.00019895,2]
[408065520,1773099040625,-151.0,0.00019895,2]
[408065521,1773099040634,-525.997103,0.00019895,2]
[408065522,1773099040642,-525.997103,0.00019895,2]
[408065523,1773099040651,-525.997103,0.00019895,2]
[408065524,1773099040660,-525.997103,0.00019895,2]
[408065525,1773099040670,-151.0,0.00019895,2]
[408065526,1773099040679,-151.0,0.00019895,2]
[408065527,1773099040688,-785.386267,0.00019896,2]
[408065528,1773099040698,-785.386267,0.00019896,2]
[408065529,1773099040707,-868.410492,0.00019896,2]
[408065530,1773099040716,-785.386267,0.00019896,2]
[408065531,1773099040725,-868.410492,0.00019896,2]
[408065532,1773099040734,-785.386267,0.00019896,2]
[408065533,1773099040743,-868.410492,0.00019896,2]
[408065534,1773099040752,-868.410492,0.00019896,2]
[408065535,1773099040761,-500.0,0.00019897,2]
[408065536,1773099040770,-500.0,0.00019897,2]
[408065537,1773099040779,-500.0,0.00019897,2]
[408065538,1773099040788,-500.0,0.00019897,2]
[408065539,1773099040797,-500.0,0.00019897,2]
[408065540,1773099040806,-500.0,0.00019897,2]
[408065541,1773099040817,-500.0,0.00019897,2]
[408065542,1773099040826,-500.0,0.00019897,2]
[408065543,1773099040836,-500.0,0.00019897,2]
[408065544,1773099040844,-500.0,0.00019897,2]
[408065545,1773099040854,-500.0,0.00019897,2]
[408065546,1773099040863,-500.0,0.00019899,2]
[408065547,1773099040872,-151.0,0.00019899,2]
[408065548,1773099040881,-151.0,0.00019899,2]
[408065549,1773099040891,-151.0,0.00019899,2]
[408065550,1773099040900,-151.0,0.00019899,2]
[408065551,1773099040909,-151.337108,0.00019899,2]
[408065552,1773099040919,-151.0,0.00019899,2]
[408065553,1773099040928,-265.292473,0.00019899,2]
[408065554,1773099040937,-151.0,0.00019899,2]
[408065555,1773099040951,-150.63017591,0.000199,8]
[408065556,1773099040960,-151.73533737,0.000199,8]
[408065557,1773099040969,-11914.31514552,0.000199,3]
[408065558,1773099040979,-151.0,0.000199,2]
[408065559,1773099040990,-150.0,0.000199,2]
[408065560,1773099040999,-5000.0,0.000199,2]
[408065561,1773099041009,-151.0,0.000199,2]
[408065562,1773099041021,-151.0,0.000199,2]
[408065563,1773099041031,-151.0,0.000199,2]
[408065564,1773099041039,-151.0,0.000199,2]
[408065565,1773099041048,-525.997103,0.000199,2]
[408065566,1773099041058,-525.997103,0.000199,2]
[408065567,1773099041070,-525.997103,0.000199,2]
[408065568,1773099041079,-525.997103,0.000199,2]
[408065569,1773099041088,-151.0,0.000199,2]
[408065570,1773099041097,-151.0,0.000199,2]
[408065571,1773099041106,-361.876305,0.000199,2]
[408065572,1773099041116,-361.876305,0.000199,2]
[408065573,1773099041126,-361.876305,0.000199,2]
[408065574,1773099041137,-361.876305,0.000199,2]
[408065575,1773099041148,-4233.39320517,0.000199,2]
[408065576,1773099041159,-602.87216165,0.000199,2]
[408065577,1773099041170,-151.0,0.000199,2]
[408065578,1773099041179,-151.0,0.000199,2]
[408065579,1773099041188,-218.155065,0.000199,2]
[408065580,1773099041199,-202.657997,0.000199,2]
[408065581,1773099041209,-218.155065,0.000199,2]
[408065582,1773099041220,-202.657997,0.000199,2]
[408065583,1773099041230,-218.155065,0.000199,2]
[408065584,1773099041242,-202.657997,0.000199,2]
[408065585,1773099041251,-218.155065,0.000199,2]
[408065586,1773099041260,-202.657997,0.000199,2]
[408065587,1773099041270,-850.38655296,0.000199,3]
[408065588,1773099041279,-1000.0,0.00019911,2]
[408065589,1773099041291,-168.0,0.00019925,2]
[408065590,1773099041303,-666.0,0.00019927,2]
[408065591,1773099041313,-164.04850966,0.00019941,2]
[408065592,1773099041323,-544.0,0.00019941,2]
[408065593,1773099041332,-500.0,0.00019941,2]
[408065594,1773099041343,-500.0,0.00019941,2]
[408065595,1773099041352,-150.0,0.00019941,2]
[408065596,1773099041363,-500.0,0.00019941,2]
[408065597,1773099041373,-1000.0,0.00019967,2]
[408065598,1773099041384,-151.0,0.00019968,2]
[408065599,1773099041394,-785.386267,0.00019968,2]
[408065600,1773099041403,-785.386267,0.00019968,2]
[408065601,1773099041413,-868.410492,0.00019968,2]
[408065602,1773099041422,-785.386267,0.00019968,2]
[408065603,1773099041432,-868.410492,0.00019968,2]
[408065604,1773099041442,-785.386267,0.00019968,2]
[408065605,1773099041453,-868.410492,0.00019968,2]
[408065606,1773099041463,-868.410492,0.00019968,2]
[408065607,1773099041473,-151.0,0.00019968,2]
[408065608,1773099041484,-1279.0,0.00019969,2]
[408065609,1773099041494,-150.0,0.00019969,2]
[408065610,1773099041503,-922.0,0.00019969,2]
[408065611,1773099041514,-1213.0,0.00019969,2]
[408065612,1773099041524,-1342.0,0.00019969,2]
[408065613,1773099041535,-619.0,0.00019969,2]
[408065614,1773099041545,-500.0,0.00019972,2]
[408065615,1773099041556,-535.0,0.00019972,2]
[408065616,1773099041566,-500.0,0.00019973,2]
[408065617,1773099041576,-500.0,0.00019973,2]
[408065618,1773099041586,-150.0,0.00019979,2]
[408065619,1773099041596,-1000.0,0.0001998,2]
[408065620,1773099041606,-427.65,0.00019984,2]
[408065621,1773099041616,-500.0,0.00019991,2]
[408065622,1773099041626,-500.0,0.00019991,2]
[408065623,1773099041636,-500.0,0.00019991,2]
[408065624,1773099041646,-500.0,0.00019991,2]
[408065625,1773099041656,-370.69943514,0.00019991,2]
[408065626,1773099041666,-500.0,0.00019991,2]
[408065627,1773099041676,-500.0,0.00019991,2]
[408065628,1773099041686,-142849.1192118,0.00019992,2]
[408065629,1773099041695,-37665.7970624,0.00019992,2]
[408065630,1773099041705,-6487.3789892,0.00019992,2]
[408065631,1773099041714,-151.0,0.00019992,2]
[408065632,1773099041723,-151.0,0.00019992,2]
[408065633,1773099041732,-151.0,0.00019992,2]
[408065634,1773099041741,-151.0,0.00019992,2]
[408065635,1773099041751,-154.136104,0.00019992,2]
[408065636,1773099041760,-151.0,0.00019992,2]
[408065637,1773099041769,-151.0,0.00019992,2]
[408065638,1773099041778,-151.0,0.00019992,2]
[408065639,1773099041788,-151.0,0.00019992,2]
[408065640,1773099041797,-151.0,0.00019992,2]
[408065641,1773099041807,-151.0,0.00019992,2]
[408065642,1773099041816,-525.997103,0.00019992,2]
[408065643,1773099041826,-525.997103,0.00019992,2]
[408065644,1773099041835,-525.997103,0.00019992,2]
[408065645,1773099041844,-525.997103,0.00019992,2]
[408065646,1773099041853,-151.0,0.00019992,2]
[408065647,1773099041862,-151.0,0.00019992,2]
[408065648,1773099041872,-361.876305,0.00019992,2]
[408065649,1773099041881,-361.876305,0.00019992,2]
[408065650,1773099041890,-361.876305,0.00019992,2]
[408065651,1773099041899,-361.876305,0.00019992,2]
[408065652,1773099041908,-151.0,0.00019992,2]
[408065653,1773099041917,-218.155065,0.00019992,2]
[408065654,1773099041927,-202.657997,0.00019992,2]
[408065655,1773099041936,-218.155065,0.00019992,2]
[408065656,1773099041949,-202.657997,0.00019992,2]
[408065657,1773099041958,-218.155065,0.00019992,2]
[408065658,1773099041969,-202.657997,0.00019992,2]
[408065659,1773099041978,-218.155065,0.00019992,2]
[408065660,1773099041988,-202.657997,0.00019992,2]
[408065661,1773099041997,-785.386267,0.00019992,2]
[408065662,1773099042007,-785.386267,0.00019992,2]
[408065663,1773099042017,-868.410492,0.00019992,2]
[408065664,1773099042216,-785.386267,0.00019992,2]
[408065665,1773099042225,-868.410492,0.00019992,2]
[408065666,1773099042234,-785.386267,0.00019992,2]
[408065667,1773099042243,-868.410492,0.00019992,2]
[408065668,1773099042252,-868.410492,0.00019992,2]
[408065669,1773099042261,-151.0,0.00019992,2]
[408065670,1773099042270,-544.0,0.00019996,2]
[408065671,1773099042279,-500.0,0.00019999,2]
[408065672,1773099042288,-500.0,0.00019999,2]
[408065673,1773099042297,-500.0,0.00019999,2]
[408065674,1773099042306,-500.0,0.00019999,2]
[408065675,1773099042315,-500.0,0.00019999,2]
[408065676,1773099042324,-500.0,0.00019999,2]
[408065677,1773099042333,-500.0,0.00019999,2]
[408065678,1773099042342,-500.0,0.00019999,2]
[408065679,1773099042351,-500.0,0.00019999,2]
[408065680,1773099042360,-500.0,0.00019999,2]
[408065681,1773099042369,-500.0,0.00019999,2]
[408065682,1773099042378,-500.0,0.00019999,2]
[408065683,1773099042387,-500.0,0.00019999,2]
[408065684,1773099042396,-500.0,0.00019999,2]
[408065685,1773099042406,-500.0,0.00019999,2]
[408065686,1773099042415,-442.44947755,0.00019999,2]
[408065687,1773099042424,-500.0,0.00019999,2]
[408065688,1773099042433,-500.0,0.00019999,2]
[408065689,1773099042443,-500.0,0.00019999,2]
[408065690,1773099042452,-500.0,0.00019999,2]
[408065691,1773099042461,-500.0,0.00019999,2]
[408065692,1773099042470,-500.0,0.00019999,2]
[408065693,1773099042479,-500.0,0.00019999,2]
[408065694,1773099042489,-500.0,0.00019999,2]
[408065695,1773099042498,-500.0,0.00019999,2]
[408065696,1773099042507,-399.79382863,0.00019999,2]
[408065697,1773099042516,-169.31838035,0.00019999,2]
[408065698,1773099042525,-500.0,0.00019999,2]
[408065699,1773099042536,-524.80912953,0.00019999,2]
[408065700,1773099042545,-21261.51779459,0.0002,3]
[408065708,1773099043966,-867.29626824,0.0002,3]
[408065709,1773099043984,-2615.92995068,0.0002,3]
[408065710,1773099044001,-1441.65226089,0.0002,3]
[408065711,1773099044578,-569.0,0.00019969,2]
[408065713,1773099046308,-8859.99999998,0.00019896,2]
[408065714,1773099046322,-4545.9825,0.00019896,2]
[408065715,1773099046333,-1006.43989593,0.00019896,2]
[408065716,1773099046342,-151.0,0.00019968,2]
[408065717,1773099046351,-481.694,0.00019969,2]
[408065718,1773099046360,-151.0,0.00019992,2]
[408065719,1773099046369,-180.88674985,0.00019999,2]
[408065720,1773099046381,-3148.97935422,0.0002,3]
[408065721,1773099046497,-500.0,0.0002,3]
[408065728,1773099247667,161.15,0.00014,2]
[408065729,1773099306370,166.0,0.000165,2]
[408065730,1773099308999,164.0,0.000165,2]
[408065731,1773099356725,1020.44395509,0.00016,2]
[408065732,1773099356747,9147.18292532,0.00016,2]
[408065734,1773099398567,200.0,0.00016,60]
[408065735,1773099398878,339.19796511,0.00015,60]
[408065736,1773099399159,200.0,0.00016,5]
[408065737,1773099606846,166.0,0.000165,2]
[408065738,1773099907449,166.0,0.000165,2]
[408065739,1773099934179,204.87,9.219e-05,2]
[408065740,1773099934438,204.87,9.704e-05,2]
[408065741,1773099934649,204.87,0.00010189,2]
[408065742,1773099934859,204.87,0.00010674,2]
[408065743,1773099935089,204.87,0.0001116,2]
[408065744,1773099935316,204.87,0.00011645,2]
[408065745,1773099935726,204.87,0.0001213,2]
[408065746,1773099935973,204.87,0.00012615,2]
[408065747,1773099936421,204.87,0.000131,2]
[408065748,1773099936479,204.87,0.00013586,2]
[408065749,1773099936685,204.87,0.00014071,2]
[408065750,1773099936932,204.87,0.00014556,2]
[408065751,1773099937828,204.87,0.00015041,2]
[408065752,1773099937887,204.87,0.00015526,2]
[408065753,1773099937938,204.87,0.00016012,2]
[408065754,1773099937980,204.87,0.00016497,2]
[408065756,1773100209027,198.72,0.00014,2]
[408065760,1773100231458,-204.87,0.00016982,2]
[408065761,1773100231468,-2533.50873719,0.00017,2]
[408065762,1773100231480,-129.52992273,0.00017,2]
[408065763,1773100231491,-200.0,0.00017,60]
[408065764,1773100231500,-200.0,0.00017,5]
[408065765,1773100231510,-503.0,0.00017,2]
[408065766,1773100231522,-300.0,0.00017099,2]
[408065767,1773100231534,-1200.0,0.00017099,2]
[408065768,1773100231543,-300.0,0.00017099,2]
[408065769,1773100231552,-150.0,0.000171,7]
[408065770,1773100231562,-180.109347,0.000171,7]
[408065771,1773100231572,-210.218695,0.000171,7]
[408065772,1773100231581,-240.328042,0.000171,7]
[408065773,1773100231590,-270.43739,0.000171,7]
[408065774,1773100231599,-300.546737,0.000171,7]
[408065775,1773100231608,-330.656085,0.000171,7]
[408065776,1773100231617,-360.765432,0.000171,7]
[408065777,1773100231627,-390.87478,0.000171,7]
[408065778,1773100231636,-420.984127,0.000171,7]
[408065779,1773100231646,-152.0,0.00017317,3]
[408065780,1773100231655,-204.87,0.00017467,2]
[408065781,1773100231664,-300.0,0.0001782,2]
[408065782,1773100231674,-134.41888953,0.0001782,2]
[408065783,1773100231696,-165.58111047,0.0001782,2]
[408065785,1773100231706,-161.15,0.000179,2]
[408065787,1773100231715,-367.36801574,0.00017917,2]
[408065789,1773100231724,-204.87,0.00017952,2]
[408065791,1773100231734,-200.0,0.00018,60]
[408065793,1773100231743,-200.0,0.00018,5]
[408065795,1773100231753,-200.0,0.00018272,2]
[408065798,1773100231762,-293.25,0.00018324,2]
[408065801,1773100231771,-500.0,0.00018356,7]
[408065804,1773100231780,-500.0,0.00018356,7]
[408065806,1773100231789,-500.0,0.00018356,7]
[408065809,1773100231798,-4700.36,0.00018363,2]
[408065811,1773100231807,-3732.83,0.00018393,2]
[408065813,1773100231817,-1500.0,0.00018398,2]
[408065815,1773100231826,-613.7,0.00018432,2]
[408065817,1773100231836,-204.87,0.00018438,2]
[408065819,1773100231845,-985.17,0.00018458,2]
[408065821,1773100231855,-200.0,0.00018604,2]
[408065823,1773100231864,-500.0,0.00018611,2]
[408065825,1773100231874,-1600.0,0.00018659,2]
[408065827,1773100231884,-420.0,0.00018674,2]
[408065829,1773100231893,-1990.21182851,0.0001868,2]
[408065830,1773100231902,-2806.0,0.0001872,2]
[408065831,1773100231912,-2000.0,0.00018763,2]
[408065832,1773100231921,-1680.0,0.00018767,2]
[408065833,1773100231931,-354.3,0.00018878,2]
[408065834,1773100231940,-354.3,0.00018878,2]
[408065835,1773100231950,-8482.4506,0.00018879,2]
[408065836,1773100231959,-503.0,0.00018969,3]
[408065837,1773100231969,-152.0,0.00018988,4]
[408065838,1773100231979,-200.0,0.00019,60]
[408065839,1773100231988,-292.79864339,0.00019,5]
[408065840,1773100231998,-500.0,0.00019,60]
[408065841,1773100232007,-500.0,0.0001902,2]
[408065842,1773100232016,-1000.0,0.0001902,2]
[408065843,1773100232025,-500.0,0.0001902,2]
[408065844,1773100232034,-500.0,0.0001902,2]
[408065845,1773100232043,-151.0,0.0001902,2]
[408065846,1773100232053,-151.0,0.0001902,2]
[408065847,1773100232062,-151.0,0.0001902,2]
[408065848,1773100232071,-151.0,0.0001902,2]
[408065849,1773100232080,-151.0,0.0001902,2]
[408065850,1773100232089,-151.0,0.0001902,2]
[408065851,1773100232098,-151.0,0.0001902,2]
[408065852,1773100232108,-289.57214403,0.0001902,2]
[408065853,1773100232118,-12527.74,0.00019032,2]
[408065854,1773100232127,-615.95375137,0.00019037,2]
[408065855,1773100232136,-1000.0,0.00019178,2]
[408065856,1773100232145,-767.0,0.00019178,2]
[408065857,1773100232154,-2000.0,0.000192,2]
[408065858,1773100232163,-1000.0,0.00019325,2]
[408065859,1773100232172,-293.25,0.00019342,2]
[408065860,1773100232181,-341.34492772,0.00019447,2]
[408065861,1773100232190,-500.0,0.00019452,7]
[408065862,1773100232198,-767.0,0.00019452,2]
[408065863,1773100232207,-1000.0,0.00019452,2]
[408065864,1773100232216,-150.0,0.00019518,2]
[408065865,1773100232225,-168.0,0.00019549,2]
[408065866,1773100232234,-1000.0,0.00019568,2]
[408065867,1773100232243,-791.35773231,0.000196,2]
[408065868,1773100232251,-168.0,0.00019652,2]
[408065869,1773100232260,-150.0,0.00019667,2]
[408065870,1773100232272,-500.0,0.00019667,2]
[408065871,1773100232282,-150.0,0.00019667,2]
[408065872,1773100232291,-454.0,0.00019667,2]
[408065873,1773100232301,-150.0,0.00019667,2]
[408065874,1773100232311,-150.0,0.00019667,2]
[408065875,1773100232319,-150.0,0.00019722,2]
[408065876,1773100232328,-500.0,0.00019722,2]
[408065877,1773100232338,-150.0,0.00019722,2]
[408065878,1773100232347,-454.0,0.00019722,2]
[408065879,1773100232356,-150.0,0.00019722,2]
[408065880,1773100232365,-150.0,0.00019722,2]
[408065881,1773100232374,-767.0,0.00019726,2]
[408065882,1773100232382,-1000.0,0.00019726,2]
[408065883,1773100232391,-413.63011318,0.00019732,2]
[408065884,1773100232400,-1000.0,0.00019757,2]
[408065885,1773100232409,-150.0,0.00019759,2]
[408065886,1773100232418,-500.0,0.00019776,2]
[408065887,1773100232427,-500.0,0.00019776,2]
[408065888,1773100232435,-500.0,0.00019776,2]
[408065889,1773100232444,-500.0,0.00019776,2]
[408065890,1773100232453,-500.0,0.00019776,2]
[408065891,1773100232462,-500.0,0.00019776,2]
[408065892,1773100232471,-500.0,0.00019776,2]
[408065893,1773100232479,-500.0,0.00019776,2]
[408065894,1773100232489,-500.0,0.00019776,2]
[408065895,1773100232498,-500.0,0.00019776,2]
[408065896,1773100232508,-150.0,0.00019777,2]
[408065897,1773100232517,-500.0,0.00019777,2]
[408065898,1773100232526,-200.0,0.00019777,2]
[408065899,1773100232535,-454.0,0.00019777,2]
[408065900,1773100232544,-200.0,0.00019777,2]
[408065901,1773100232553,-200.0,0.00019777,2]
[408065902,1773100232563,-172.87392778,0.00019782,2]
[408065903,1773100232571,-612.1192,0.000198,2]